Cogmind - Beta 11.1 @@@ ROGUE MODE // 2022.09.11 @ 19:35:23 Player: PieTheDye Result: Smashed by cave-in Performance ------------- Evolutions (0) 0 Regions Visited (2) 400 Robots Destroyed (7) 35 Value Destroyed (158) 158 Prototype IDs (0) 0 Alien Tech Used (0) 0 Bonus (0) 0 TOTAL SCORE: 593 Bonus ------- None Cogmind --------- Core Integrity 0/250 Matter 300/300 Energy 250/250 System Corruption 4% Temperature Cool (0) Movement Treading (160) Location -10/Mines Parts ------- > --- POWER (1) -------- Ion Engine > --- PROPULSION (2) --- Light Treads Light Treads > --- UTILITY (2) ------ (None) > --- WEAPON (2) ------- Particle Gun Light Assault Rifle > --- INVENTORY (5) ---- Light Nuclear Core Grenade Launcher Grenade Launcher Mining Laser Peak State ------------ > --- POWER ------------ Ion Engine > --- PROPULSION ------- Light Treads Light Treads > --- UTILITY ---------- Improved Terrain Scanner > --- WEAPON ----------- Particle Gun Light Assault Rifle > --- INVENTORY -------- Light Nuclear Core Grenade Launcher Mining Laser [Rating: 9] Favorites ----------- Power Ion Engine Engine Ion Engine Propulsion Light Treads Treads Light Treads Utility Improved Terrain Scanner Device Improved Terrain Scanner Weapon Light Assault Rifle Energy Gun Particle Gun Ballistic Gun Light Assault Rifle Launcher Grenade Launcher Build | -11 -10 -10 ------- Run | Scr Mat Min Slots Evolved . | . . . Power . | . . . Propulsion . | . . . Utility . | . . . Weapon . | . . . Parts Attached 9 | 6 2 1 Power 1 | 1 . . Engine 1 | 1 . . Core . | . . . Reactor . | . . . Propulsion 2 | 2 . . Treads 2 | 2 . . Leg . | . . . Wheel . | . . . Hover . | . . . Flight . | . . . Utility 1 | 1 . . Device 1 | 1 . . Storage . | . . . Processor . | . . . Hackware . | . . . Protection . | . . . Artifact . | . . . Weapon 5 | 2 2 1 Energy Gun 1 | . . 1 Energy Cannon . | . . . Ballistic Gun 3 | 2 1 . Ballistic Cannon . | . . . Launcher 1 | . 1 . Special Weapon . | . . . Impact Weapon . | . . . Slashing Weapon . | . . . Piercing Weapon . | . . . Special Melee Weapon . | . . . Unidentified Prototypes . | . . . Parts Lost 1 | . . 1 Power . | . . . Propulsion . | . . . Utility 1 | . . 1 Weapon . | . . . Highest Loss Streak 1 | . . 1 To Critical Strikes . | . . . Average Slot Usage (%) 84 | . 85 84 Engine 14 | . 14 14 Treads 28 | . 28 28 Device 14 | . 14 14 Energy Gun 5 | . . 11 Ballistic Gun 22 | . 28 16 Naked Turns . | . . . Heaviest Build 10 | 9 9 10 Greatest Support 40 | 40 40 40 Greatest Overweight (x) . | . . . Average Overweight (x) . | . . . Largest Inventory Capacity 5 | 5 5 5 Average Capacity 5 | 5 5 5 Most Carried 4 | 2 4 4 Average Carried 2 | . 1 3 Final Capacity 5 | 5 5 5 Final Carried 4 | 1 4 4 Class Distribution -------------------- 100% | Mutant Dominant Class ---------------- Mutant | -10/Materials Mutant | -10/Mines Resources | -11 -10 -10 ----------- Run | Scr Mat Min Matter Collected 365 | 179 77 109 Remotely . | . . . Salvage Created 254 | 121 83 50 Parts 13 | 7 4 2 Haulers Intercepted . | . . . Recyclers Shooed . | . . . Parts Field Recycled . | . . . Retrieved Matter . | . . . Parts Self-Destructed . | . . . Prevented . | . . . Kills | -11 -10 -10 ------- Run | Scr Mat Min Combat Hostiles Destroyed 4 | . 2 2 Guns 2 | . . 2 AOE 2 | . 2 . Classes Destroyed 4 | 2 1 1 Tunneler 2 | 2 . . Recycler 1 | 1 . . Swarmer 1 | . . 1 Grunt 3 | . 2 1 Best Kill Streak 2 | 1 2 2 Combat Bots Only 2 | . 2 2 Max Kills in Single Turn 1 | 1 1 1 Gunslinging . | . . . Exploded 1 | . 1 . Melee . | . . . Uniques/NPCs Destroyed . | . . . Combat | -11 -10 -10 -------- Run | Scr Mat Min Damage Taken 484 | . 37 447 Core 256 | . 27 229 Absorbed by Shields . | . . . Core Remaining (%) 100 | 100 . . Volleys Fired 18 | 9 4 5 Largest 2 | 2 2 2 Hottest 85 | 40 40 85 Shots Fired 34 | 18 6 10 Gun 32 | 18 4 10 Cannon . | . . . Launcher 2 | . 2 . Special . | . . . Kinetic 27 | 18 4 5 Thermal 5 | . . 5 Explosive 2 | . 2 . Electromagnetic . | . . . Robot Hit Streak 8 | 8 2 3 Robot Miss Streak 4 | 3 1 4 Penetration Max . | . . . Secondary Targets . | . . . Shots Hit Robots 19 | 11 3 5 Core Hits 12 | 4 5 3 Critical Kills . | . . . Critical Parts Destroyed . | . . . Critical Strikes . | . . . Melee Attacks . | . . . Impact . | . . . Slashing . | . . . Piercing . | . . . Sneak Attacks . | . . . Combat Hostiles . | . . . Follow-up Attacks . | . . . Damage Inflicted 275 | 120 96 59 Guns 199 | 120 20 59 Cannons . | . . . Explosions 76 | . 76 . Melee . | . . . Ramming . | . . . Kinetic 163 | 120 20 23 Thermal 36 | . . 36 Explosive 76 | . 76 . Electromagnetic . | . . . Impact . | . . . Slashing . | . . . Piercing . | . . . Highest Corruption 1 | . 1 1 Average Corruption 1 | . 1 1 Corruption Purged . | . . . Corruption Blocked . | . . . Effects 5 | . . 5 Message Errors 1 | . . 1 Matter Fused 1 | . . 1 Energy Discharges 1 | . . 1 Parts Rejected 1 | . . 1 Data Loss (minor) 1 | . . 1 Overload Shots . | . . . Overflow Damage . | . . . Projectiles . | . . . Explosions . | . . . Melee . | . . . Knockbacks . | . . . Impact . | . . . Kinetic . | . . . Secondary . | . . . Self-Inflicted Damage . | . . . Shots . | . . . Rammed . | . . . Targets Rammed . | . . . Kicked . | . . . Crushed . | . . . Highest Temperature 178 | . 9 178 Average Temperature 84 | . 5 92 Received Heat Transfer 51 | . 24 27 Siege Activations . | . . . Robots Corrupted . | . . . Combat Hostiles . | . . . Parts Fried . | . . . Impact Corruptions . | . . . Robots Melted . | . . . Combat Hostiles . | . . . Parts Melted . | . . . Heat Transferred 74 | . . 74 Parts Sabotaged . | . . . Parts Stolen . | . . . Parts Stripped . | . . . Power Chain Reactions . | . . . Missiles Intercepted . | . . . Alert | -11 -10 -10 ------- Run | Scr Mat Min Peak Influence 142 | 15 98 142 Initial 37 | . 9 37 Average 57 | 7 28 116 Maximum Alert Level . | . . . Low Security (%) 100 | 100 100 100 Level 1 . | . . . Level 2 . | . . . Level 3 . | . . . Level 4 . | . . . Level 5 . | . . . High Security . | . . . Max Security . | . . . Squads Dispatched 2 | . 2 . Investigation 1 | . 1 . Extermination . | . . . Reinforcement 1 | . 1 . Assault . | . . . Garrison . | . . . Intercept . | . . . Searches Triggered . | . . . Construction Impeded . | . . . Haulers Reinforced . | . . . Active Scanning Responses . | . . . Cargo Convoy Interrupts . | . . . Stealth | -11 -10 -10 --------- Run | Scr Mat Min Distress Signals . | . . . Communications Jammed . | . . . Distress Signals . | . . . Times Spotted 23 | . 3 20 Peak Tracking Total 22 | . 2 22 Tactical Retreats 3 | . . 3 Traps | -11 -10 -10 ------- Run | Scr Mat Min Traps Triggered 1 | . 1 . Indirectly . | . . . Trap Hack Attempts . | . . . Triggered . | . . . Disarmed . | . . . Reprogrammed . | . . . Reused . | . . . Traps Extracted . | . . . Installed . | . . . Triggered . | . . . Machines | -11 -10 -10 ---------- Run | Scr Mat Min Machines Disabled . | . . . Max in Single Turn . | . . . Machines Sabotaged . | . . . Garrisons Compromised . | . . . Overloaded Fab Kills . | . . . Hacking | -11 -10 -10 --------- Run | Scr Mat Min Machines Accessed 5 | . 4 1 Terminals 5 | . 4 1 Fabricators . | . . . Repair Stations . | . . . Recycling Units . | . . . Scanalyzers . | . . . Garrison Access . | . . . Total Hacks 8 | . 7 1 Successful 3 | . 2 1 Failed 5 | . 5 . Catastrophic 1 | . 1 . Database Lockouts . | . . . Manual 1 | . 1 . Terminals 8 | . 7 1 Fabricators . | . . . Repair Stations . | . . . Recycling Units . | . . . Scanalyzers . | . . . Garrison Access . | . . . Terminal Hacks 3 | . 2 1 Alert Level 1 | . 1 . Maintenance Status 1 | . 1 . Zone Layout 1 | . . 1 Fabricator Hacks . | . . . Repair Station Hacks . | . . . Recycling Unit Hacks . | . . . Scanalyzer . | . . . Garrison Access Hacks . | . . . Unauthorized Hacks . | . . . Terminals . | . . . Fabricators . | . . . Repair Stations . | . . . Recycling Units . | . . . Scanalyzers . | . . . Garrison Access . | . . . Data Cores Recovered . | . . . Used . | . . . Hacking Detections 3 | . 3 . Full Trace Events 1 | . 1 . Feedback Events . | . . . Feedback Blocked . | . . . Robot Schematics Acquired . | . . . Robots Built . | . . . Authchips . | . . . Time . | . . . Total Robot Build Rating . | . . . Part Schematics Acquired . | . . . Parts Built . | . . . Authchips . | . . . Time . | . . . Total Part Build Rating . | . . . Parts Repaired . | . . . Time . | . . . Parts Recycled . | . . . Recycled Matter . | . . . Retrieved Matter . | . . . Retrieved Components . | . . . Parts Scanalyzed . | . . . Part Schematics Acquired . | . . . Parts Damaged . | . . . Bothacking | -11 -10 -10 ------------ Run | Scr Mat Min Used RIF Installer . | . . . Robots Hacked . | . . . Non-combat . | . . . Combat . | . . . Robot Hacks Applied . | . . . Relay Couplers Released . | . . . Fabnet Peak Effective % . | . . . Robots Rewired . | . . . Allies Hacked . | . . . Hacks Repelled . | . . . Allies | -11 -10 -10 -------- Run | Scr Mat Min Total Allies . | . . . Largest Group . | . . . Highest-Rated Group . | . . . Highest-Rated Ally . | . . . Total Orders . | . . . Ally Attacks . | . . . Total Damage . | . . . Kills . | . . . Allies Corrupted . | . . . Allies Melted . | . . . Intel | -11 -10 -10 ------- Run | Scr Mat Min Robot Analysis Total . | . . . Derelict Logs Recovered . | . . . Drone Launches . | . . . Drone Recoveries . | . . . Exploration | -11 -10 -10 ------------- Run | Scr Mat Min Turns Passed 705 | 129 313 263 Spaces Moved 385 | 61 186 138 Core 5 | 5 . . Treads 380 | 56 186 138 Legs . | . . . Wheels . | . . . Hover . | . . . Flight . | . . . Fastest Speed 50 | 50 160 160 Average Speed 158 | 150 160 160 Slowest Speed 160 | 160 160 160 Overloaded Moves . | . . . Propulsion Burnouts . | . . . Robots Hopped . | . . . Cave-ins Triggered 1 | . . 1 Exploration Rate (%) 25 | 5 29 41 Regions Visited 2 Branch Regions 1 Pre-discovered Areas . | . . . Known Exits Taken . | . . . Unknown Exits Taken 2 | 1 1 . Scrap Searched . | . . . Spaces Dug . | . . . Terrain Destroyed 11 | . 11 . Melee . | . . . Projectile . | . . . AOE 11 | . 11 . Terrain Rammed . | . . . Walls Destroyed . | . . . Machines Disabled . | . . . Actions | -11 -10 -10 --------- Run | Scr Mat Min Total 451 | 82 197 172 Wait 28 | . 1 27 Move 383 | 60 185 138 Hop . | . . . Pick Up 11 | 7 3 1 Fast Attach . | . . . Attach 9 | 6 2 1 Detach 2 | . 2 . Swap . | . . . Drop . | . . . Fire 18 | 9 4 5 Melee . | . . . Ram . | . . . Kick . | . . . Crush . | . . . Escape Stasis . | . . . Rewire . | . . . Trap . | . . . Miscellaneous . | . . . Route ------- -11/Scrapyard -10/Materials -10/Mines (discovered 1 exit: [*Mat]) History --------- Turn | Location | Event 25 | -11/Scrapyard | Discovered new exit (range 16) 130 | -11/Scrapyard | Entered Materials 302 | -10/Materials | Build established: Mutant 416 | -10/Materials | Discovered new exit (range 15) 443 | -10/Materials | Entered Mines 457 | -10/Mines | Assembled infested the area 462 | -10/Mines | Assisted by a Guerilla fighting off Assembled 542 | -10/Mines | Discovered new exit (range 4) 632 | -10/Mines | YI-UF0 nonchalantly dropped a Grenade Launcher on the ground 707 | -10/Mines | Crushed by falling debris 707 | -10/Mines | Smashed by cave-in Last Messages --------------- YI-UF0 nonchalantly drops a Grenade Launcher on the ground. Acquired Grenade Launcher. YI-UF0 mumbles something. S-10 Pest destroyed. YI-UF0: "BAROOM!" S-10 Pest destroyed. System corrupted: Energy discharge (-87). R-06 Scavenger collects Flight Unit. System corrupted: Component data lost. YI-UF0 mumbles something. S-10 Pest destroyed. R-06 Scavenger destroyed. YI-UF0: "BOOSH!" R-06 Scavenger destroyed. YI-UF0: "BWOOM!" S-10 Pest destroyed. The unstable cave ceiling collapses. Crushed by falling debris. Imp. Terrain Scanner destroyed. System corrupted by crushing effect (+3). Map ----- +----------------------------------------------------+ | ?????????????????????????????????????????????????? | | ?????????????????????????????????????????????????? | | ?????????????????????????????????????????????????? | | ?????????????????????????????????????????????????? | | ?????????????????????????????????????????????????? | | ?????????????????????????????????????????????????? | | ?????????????????????????????????????????????????? | | ?????????????????????????????????????????????????? | | ?????????????????????????????????????????????????? | | ?????????????????#???????????????????????????????? | | ??????????????????????????#??????????????????????? | | ???????????????#????##???????????????????????????? | | ???????????????????????????####??????????????????? | | ??????????????????????#???# ####???????????????? | | ??????????????????????#### ????????????????? | | #???????????????????### ##????????????????? | | #??????????????????## #??????????????????? | | #?? ???????###?????# #??????????????????? | | #?????????## ###### #???????????????????? | | #?????????# ## #?????????????????????? | | #??#???#?## ##????????????????????? | | #????????#?# ####?????????????????? | | ##???????#?## #?????????????????? | | ###?????#??## # == =##????????????????? | | #??????????# # g ![% % % ##???????????????? | | #??????##### %[@!= ????????? | | #?????#?# # [ ????????? | | #???????# #### # ## ????????? | | #####???# #?### ## #####??? ?????????? | | #???# ##### ### #????????? ??????????? | | #### ##### ## # [ #????????????????????? | | #??# ##### ## = ###????????????????????? | | ???#### #???# #### %=#??????????????????????? | | ??????# #??## #### #??????????????????????? | | ##????# #??# ????????????????????? | | #????# #### #### ????????????????????? | | #???# #??## ##?#?????????????????????? | | ???####### #???## ?????????????????????????? | | ???#?????# ##???## ?????????????????????????? | | ?? ????## #???#??? ?????????????????????????? | | # ?????????# #???????????????????????????????????? | | ##?? ??? ??# ???????????????????????????????????? | | ##????????? #?? ????????????????????????????????? | | ???????????###???????????????????????????????????? | | ?????????????????????????????????????????????????? | | ?????????????????????????????????????????????????? | | ?#?????????????????#?????????????????????????????? | | ?????????????????????????????????????????????????? | | ?##??????????????????????????????????????????????? | | ???????????????#?????????????????????????????????? | +----------------------------------------------------+ Best States ------------- Heat Dissipation 25 Energy Generation 10 Energy Capacity 250 Matter Stores 300 Matter Capacity 300 Sight Range 16 Terrain Scan Range 16 Terrain Scan Density 10 Evasion (%) 40 Recoil Reduction 2 Item Schematics ----------------- None Robot Schematics ------------------ None Fabricated ------------ Nothing Alien Tech Used ----------------- None Achievements -------------- Hunted Challenges ------------ None Game ------ Seed SpliceEnergyPerforator Manual? 0 Play Time 00:13:13 Cumulative 9.2 hours Start 2022.09.11 @ 19:22:52 End 2022.09.11 @ 19:35:23 Sessions 1 Manual Loads 0 Difficulty Rogue Special Mode None Game No. 15 Rogue 15 Adventurer 0 Explorer 0 Win Type - Total 0 Types 0/0/0/0/0/0/0/0/0 Lore% 7 Gallery% 13 Achievement% 11 Wizard Run 0 Options --------- ASCII 0 Keyboard 0 Movement Numpad Keybinds 0 Fullscreen 2 Font 16/Terminus Map View 76x50 Tactical HUD 0 Map Filters NONE Filters NONE Steam 1 RUN: 5c7b1f6d-c182-43e7-9256-941273c36d97